fUST/lending_fUST_20250725
["ID","MTS","AMOUNT","RATE_DAILY","PERIOD"]
[374785409,1753443039527,-460.0,0.00019178,2]
[374785410,1753443039539,-460.0,0.00019178,2]
[374785411,1753443039551,-460.0,0.00019178,2]
[374785412,1753443039563,-650.35,0.00019178,2]
[374785413,1753443039575,-460.0,0.00019178,2]
[374785414,1753443039586,-463.25835444,0.00019178,2]
[374785415,1753443039597,-460.0,0.00019178,2]
[374785416,1753443039607,-460.0,0.00019178,2]
[374785417,1753443039617,-460.0,0.00019178,2]
[374785418,1753443039627,-460.35755226,0.00019178,2]
[374785419,1753443039637,-460.0,0.00019178,2]
[374785420,1753443039648,-460.0,0.00019178,2]
[374785421,1753443039659,-500.0,0.00019178,2]
[374785422,1753443039671,-666.0,0.00019178,2]
[374785423,1753443039682,-164.702121,0.00019178,2]
[374785424,1753443039694,-1718.86412499,0.00019205,5]
[374785425,1753443039708,-595.57044424,0.00019283,2]
[374785426,1753443039720,-469.45,0.00019319,3]
[374785427,1753443039731,-234.73,0.00019319,3]
[374785428,1753443039741,-704.2,0.00019319,3]
[374785429,1753443039753,-100000.0,0.00019329,2]
[374785430,1753443039766,-501.0143828,0.00019373,2]
[374785431,1753443039778,-509.87,0.00019378,2]
[374785432,1753443039789,-927.00149798,0.00019383,2]
[374785433,1753443039799,-500.0,0.00019451,2]
[374785434,1753443039810,-460.0,0.00019452,2]
[374785435,1753443039821,-460.0,0.00019452,2]
[374785436,1753443039833,-460.0,0.00019452,2]
[374785437,1753443039846,-460.0,0.00019452,2]
[374785438,1753443039856,-460.0,0.00019452,2]
[374785439,1753443039867,-492.12,0.00019452,2]
[374785440,1753443039877,-689.16,0.00019452,2]
[374785441,1753443039889,-460.0,0.00019452,2]
[374785442,1753443039900,-601.7,0.00019452,2]
[374785443,1753443039910,-460.0,0.00019452,2]
[374785444,1753443039920,-788.56,0.00019452,2]
[374785445,1753443039931,-460.0,0.00019452,2]
[374785446,1753443039941,-3600.62,0.00019452,2]
[374785447,1753443039951,-459.999999,0.00019452,2]
[374785448,1753443039963,-991.65,0.00019452,2]
[374785449,1753443039973,-460.0,0.00019452,2]
[374785451,1753443039983,-650.35,0.00019452,2]
[374785452,1753443039994,-460.0,0.00019452,2]
[374785453,1753443040006,-600.75,0.00019452,2]
[374785454,1753443040016,-500.0,0.00019452,2]
[374785455,1753443040027,-927.00149798,0.00019624,2]
[374785456,1753443040038,-407.54,0.00019726,2]
[374785458,1753443040050,-460.0,0.00019726,2]
[374785459,1753443040061,-689.16,0.00019726,2]
[374785460,1753443040074,-460.0,0.00019726,2]
[374785461,1753443040085,-601.7,0.00019726,2]
[374785462,1753443040096,-460.0,0.00019726,2]
[374785463,1753443040108,-788.56,0.00019726,2]
[374785464,1753443040120,-347.8,0.00019726,2]
[374785465,1753443040132,-3600.62,0.00019726,2]
[374785466,1753443040143,-991.65,0.00019726,2]
[374785467,1753443040157,-534.23,0.00019726,2]
[374785468,1753443040167,-650.35,0.00019726,2]
[374785469,1753443040178,-460.0,0.00019726,2]
[374785471,1753443040189,-500.0,0.00019726,2]
[374785472,1753443040199,-420.0,0.00019827,2]
[374785474,1753443040210,-927.00149798,0.00019866,2]
[374785476,1753443040221,-529798.87015763,0.000199,2]
[374785478,1753443040232,-181.86492511,0.000199,2]
[374785480,1753443040243,-160.0,0.00019916,2]
[374785482,1753443040254,-460.0,0.0002,2]
[374785484,1753443040265,-689.16,0.0002,2]
[374785486,1753443040275,-425.22,0.0002,2]
[374785488,1753443040286,-601.7,0.0002,2]
[374785490,1753443040297,-460.0,0.0002,2]
[374785492,1753443040308,-788.56,0.0002,2]
[374785494,1753443040319,-3600.62,0.0002,2]
[374785496,1753443040330,-991.65,0.0002,2]
[374785498,1753443040341,-650.35,0.0002,2]
[374785500,1753443040351,-500.7912942,0.00020033,2]
[374785502,1753443040361,-292.58733281,0.00020035,2]
[374785504,1753443040372,-927.00149798,0.00020107,2]
[374785506,1753443040382,-307.994443,0.00020187,2]
[374785508,1753443040393,-460.0,0.00020273,2]
[374785509,1753443040404,-689.16,0.00020273,2]
[374785510,1753443040415,-601.7,0.00020273,2]
[374785511,1753443040427,-460.0,0.00020273,2]
[374785515,1753443040586,-788.56,0.00020273,2]
[374785517,1753443040596,-3600.62,0.00020273,2]
[374785519,1753443040606,-991.65,0.00020273,2]
[374785521,1753443040615,-650.35,0.00020273,2]
[374785523,1753443040624,-1019.73,0.00020301,2]
[374785525,1753443040634,-927.00149798,0.00020348,3]
[374785527,1753443040644,-260.0,0.00020464,2]
[374785529,1753443040655,-500.0,0.00020546,2]
[374785530,1753443040664,-460.0,0.00020547,2]
[374785532,1753443040674,-689.16,0.00020547,2]
[374785534,1753443040683,-601.7,0.00020547,2]
[374785536,1753443040693,-460.0,0.00020547,2]
[374785538,1753443040702,-788.56,0.00020547,2]
[374785539,1753443040711,-3600.62,0.00020547,2]
[374785542,1753443040721,-991.65,0.00020547,2]
[374785545,1753443040730,-650.35,0.00020547,2]
[374785546,1753443040740,-927.00149798,0.0002059,3]
[374785547,1753443040749,-800.0,0.00020607,2]
[374785548,1753443040758,-938.9,0.00020689,3]
[374785549,1753443040767,-469.46,0.00020689,3]
[374785550,1753443040777,-460.0,0.00020821,2]
[374785551,1753443040786,-689.16,0.00020821,2]
[374785552,1753443040796,-601.7,0.00020821,2]
[374785553,1753443040806,-460.0,0.00020821,2]
[374785554,1753443040815,-788.56,0.00020821,2]
[374785555,1753443040824,-3600.62,0.00020821,2]
[374785556,1753443040833,-991.65,0.00020821,2]
[374785557,1753443040843,-650.35,0.00020821,2]
[374785558,1753443040852,-927.00149798,0.00020831,4]
[374785559,1753443040862,-151.30489874,0.00020949,2]
[374785560,1753443040872,-215.0738,0.00020949,2]
[374785561,1753443040881,-14064.86338015,0.00020949,2]
[374785562,1753443040891,-292.58733281,0.00020998,2]
[374785563,1753443040902,-260.0,0.00021012,2]
[374785564,1753443040912,-927.00149798,0.00021072,4]
[374785565,1753443040921,-500.0,0.00021093,2]
[374785566,1753443040930,-460.0,0.00021094,2]
[374785567,1753443040939,-460.62258522,0.00021094,2]
[374785568,1753443040948,-460.0,0.00021094,2]
[374785569,1753443040958,-461.41550793,0.00021094,2]
[374785570,1753443040968,-462.87270064,0.00021094,2]
[374785571,1753443040978,-460.0,0.00021094,2]
[374785572,1753443040987,-460.0,0.00021094,2]
[374785573,1753443040997,-460.0,0.00021094,2]
[374785574,1753443041006,-460.0,0.00021094,2]
[374785575,1753443041015,-460.0,0.00021094,2]
[374785576,1753443041025,-460.0,0.00021094,2]
[374785577,1753443041034,-460.0,0.00021094,2]
[374785578,1753443041044,-460.0,0.00021094,2]
[374785579,1753443041054,-460.0,0.00021094,2]
[374785580,1753443041065,-460.0,0.00021094,2]
[374785581,1753443041076,-460.0,0.00021094,2]
[374785582,1753443041085,-460.0,0.00021094,2]
[374785583,1753443041094,-429.94343313,0.00021094,2]
[374785584,1753443041104,-460.0,0.00021094,2]
[374785585,1753443041114,-460.0,0.00021094,2]
[374785586,1753443041124,-460.0,0.00021094,2]
[374785587,1753443041134,-460.0,0.00021094,2]
[374785588,1753443041145,-460.0,0.00021094,2]
[374785589,1753443041157,-460.0,0.00021094,2]
[374785590,1753443041167,-588.58047237,0.00021094,2]
[374785591,1753443041177,-500.0,0.00021094,2]
[374785592,1753443041186,-229.21364498,0.00021094,2]
[374785593,1753443041196,-460.0,0.00021094,2]
[374785594,1753443041206,-460.0,0.00021094,2]
[374785595,1753443041215,-460.0,0.00021094,2]
[374785596,1753443041225,-460.0,0.00021094,2]
[374785597,1753443041235,-460.0,0.00021094,2]
[374785598,1753443041244,-460.0,0.00021094,2]
[374785599,1753443041254,-460.0,0.00021094,2]
[374785600,1753443041263,-460.0,0.00021094,2]
[374785601,1753443041273,-460.0,0.00021094,2]
[374785602,1753443041283,-460.0,0.00021094,2]
[374785603,1753443041292,-460.0,0.00021094,2]
[374785604,1753443041301,-460.0,0.00021094,2]
[374785605,1753443041311,-460.0,0.00021094,2]
[374785606,1753443041320,-460.0,0.00021094,2]
[374785607,1753443041331,-460.0,0.00021094,2]
[374785608,1753443041340,-460.0,0.00021094,2]
[374785609,1753443041349,-215.76472927,0.00021094,2]
[374785610,1753443041359,-460.0,0.00021094,2]
[374785611,1753443041369,-460.0,0.00021094,2]
[374785612,1753443041378,-460.0,0.00021094,2]
[374785613,1753443041387,-460.0,0.00021094,2]
[374785614,1753443041397,-460.0,0.00021094,2]
[374785615,1753443041408,-460.0,0.00021094,2]
[374785616,1753443041418,-460.0,0.00021094,2]
[374785617,1753443041428,-460.0,0.00021094,2]
[374785618,1753443041437,-576.26,0.00021094,2]
[374785619,1753443041446,-460.0,0.00021094,2]
[374785620,1753443041456,-460.0,0.00021094,2]
[374785621,1753443041466,-460.0,0.00021094,2]
[374785622,1753443041475,-194.80044835,0.00021094,2]
[374785623,1753443041485,-460.0,0.00021094,2]
[374785624,1753443041495,-460.0,0.00021094,2]
[374785625,1753443041504,-460.0,0.00021094,2]
[374785626,1753443041514,-1208.39,0.00021094,2]
[374785627,1753443041523,-460.0,0.00021094,2]
[374785628,1753443041532,-460.0,0.00021094,2]
[374785629,1753443041542,-460.0,0.00021094,2]
[374785630,1753443041551,-460.0,0.00021094,2]
[374785631,1753443041561,-460.0,0.00021094,2]
[374785632,1753443041571,-460.0,0.00021094,2]
[374785633,1753443041580,-460.0,0.00021094,2]
[374785634,1753443041590,-460.0,0.00021094,2]
[374785635,1753443041599,-460.0,0.00021094,2]
[374785636,1753443041609,-451.63635953,0.00021094,2]
[374785637,1753443041618,-460.0,0.00021094,2]
[374785638,1753443041628,-364.15,0.00021094,2]
[374785639,1753443041637,-460.0,0.00021094,2]
[374785640,1753443041647,-460.0,0.00021094,2]
[374785641,1753443041658,-462.60960298,0.00021094,2]
[374785642,1753443041667,-460.0,0.00021094,2]
[374785643,1753443041677,-460.0,0.00021094,2]
[374785644,1753443041687,-460.0,0.00021094,2]
[374785645,1753443041696,-460.0,0.00021094,2]
[374785646,1753443041706,-460.0,0.00021094,2]
[374785647,1753443041715,-460.0,0.00021094,2]
[374785648,1753443041725,-460.0,0.00021094,2]
[374785649,1753443041735,-460.0,0.00021094,2]
[374785650,1753443041745,-460.0,0.00021094,2]
[374785651,1753443041755,-460.0,0.00021094,2]
[374785652,1753443041764,-460.0,0.00021094,2]
[374785653,1753443041774,-321.28337792,0.00021094,7]
[374785654,1753443041784,-460.0,0.00021094,2]
[374785655,1753443041794,-460.0,0.00021095,2]
[374785656,1753443041803,-689.16,0.00021095,2]
[374785657,1753443041812,-601.7,0.00021095,2]
[374785658,1753443041822,-460.0,0.00021095,2]
[374785659,1753443041831,-788.56,0.00021095,2]
[374785660,1753443041840,-3600.62,0.00021095,2]
[374785661,1753443041850,-991.65,0.00021095,2]
[374785662,1753443041859,-650.35,0.00021095,2]
[374785663,1753443041868,-1529.6,0.00021223,2]
[374785664,1753443041878,-249.47,0.00021246,2]
[374785665,1753443041888,-927.00149798,0.00021314,5]
[374785666,1753443041898,-275.27,0.00021358,3]
[374785667,1753443041910,-825.85,0.00021358,3]
[374785668,1753443041920,-460.0,0.00021368,2]
[374785669,1753443041930,-460.0,0.00021368,2]
[374785670,1753443041939,-460.0,0.00021368,2]
[374785671,1753443041949,-460.0,0.00021368,2]
[374785672,1753443041958,-460.0,0.00021368,2]
[374785673,1753443041968,-460.0,0.00021368,2]
[374785674,1753443041977,-424.0,0.00021368,2]
[374785675,1753443041987,-460.0,0.00021368,2]
[374785676,1753443041998,-460.0,0.00021368,2]
[374785677,1753443042008,-266.53,0.00021368,2]
[374785678,1753443042019,-460.0,0.00021368,2]
[374785679,1753443042028,-460.0,0.00021368,2]
[374785680,1753443042039,-460.0,0.00021368,2]
[374785681,1753443042048,-460.0,0.00021368,2]
[374785682,1753443042057,-460.0,0.00021368,2]
[374785683,1753443042070,-460.0,0.00021368,2]
[374785684,1753443042080,-460.0,0.00021368,2]
[374785685,1753443042092,-1208.39,0.00021368,2]
[374785686,1753443042101,-460.0,0.00021368,2]
[374785687,1753443042112,-460.0,0.00021368,2]
[374785688,1753443042122,-460.0,0.00021368,2]
[374785689,1753443042131,-460.0,0.00021368,2]
[374785690,1753443042144,-460.0,0.00021368,2]
[374785691,1753443042156,-460.0,0.00021368,2]
[374785692,1753443042167,-460.0,0.00021368,2]
[374785693,1753443042177,-258.29579809,0.00021368,2]
[374785694,1753443042186,-460.0,0.00021368,2]
[374785695,1753443042196,-460.0,0.00021368,2]
[374785696,1753443042206,-460.0,0.00021369,2]
[374785697,1753443042216,-689.16,0.00021369,2]
[374785698,1753443042227,-601.7,0.00021369,2]
[374785699,1753443042236,-460.0,0.00021369,2]
[374785700,1753443042246,-788.56,0.00021369,2]
[374785701,1753443042257,-3600.62,0.00021369,2]
[374785702,1753443042268,-991.65,0.00021369,2]
[374785703,1753443042278,-650.35,0.00021369,2]
[374785704,1753443042288,-500.37542207,0.00021394,2]
[374785705,1753443042297,-2219.31768029,0.000215,2]
[374785706,1753443042307,-927.00149798,0.00021555,5]
[374785707,1753443042318,-587.0,0.0002163,2]
[374785708,1753443042330,-500.0,0.00021641,2]
[374785709,1753443042340,-460.0,0.00021642,2]
[374785710,1753443042351,-460.0,0.00021642,2]
[374785711,1753443042360,-460.0,0.00021642,2]
[374785712,1753443042370,-460.0,0.00021642,2]
[374785713,1753443042380,-460.0,0.00021642,2]
[374785714,1753443042391,-1208.39,0.00021642,2]
[374785715,1753443042400,-460.0,0.00021642,2]
[374785716,1753443042411,-460.0,0.00021642,2]
[374785717,1753443042421,-460.0,0.00021642,2]
[374785718,1753443042431,-460.0,0.00021642,2]
[374785719,1753443042441,-460.0,0.00021642,2]
[374785720,1753443042451,-477.56,0.00021642,2]
[374785721,1753443042461,-460.0,0.00021642,2]
[374785722,1753443042473,-460.0,0.00021642,2]
[374785723,1753443042484,-460.0,0.00021643,2]
[374785724,1753443042494,-689.16,0.00021643,2]
[374785725,1753443042504,-601.7,0.00021643,2]
[374785726,1753443042514,-460.0,0.00021643,2]
[374785727,1753443042524,-788.56,0.00021643,2]
[374785728,1753443042534,-3600.62,0.00021643,2]
[374785729,1753443042544,-991.65,0.00021643,2]
[374785730,1753443042554,-650.35,0.00021643,2]
[374785731,1753443042564,-1597.56744014,0.00021652,2]
[374785732,1753443042574,-800.0,0.00021703,2]
[374785733,1753443042584,-927.00149798,0.00021797,6]
[374785734,1753443042594,-460.0,0.00021916,2]
[374785735,1753443042604,-460.0,0.00021916,2]
[374785736,1753443042615,-460.0,0.00021916,2]
[374785737,1753443042625,-460.0,0.00021916,2]
[374785738,1753443042634,-1208.39,0.00021916,2]
[374785739,1753443042644,-460.0,0.00021916,2]
[374785740,1753443042655,-460.0,0.00021916,2]
[374785741,1753443042664,-460.0,0.00021916,2]
[374785742,1753443042674,-460.0,0.00021916,2]
[374785743,1753443042684,-460.0,0.00021916,2]
[374785744,1753443042694,-460.0,0.00021916,2]
[374785745,1753443042703,-460.0,0.00021916,2]
[374785746,1753443042713,-460.0,0.00021917,2]
[374785747,1753443042723,-689.16,0.00021917,2]
[374785748,1753443042732,-601.7,0.00021917,2]
[374785749,1753443042742,-460.0,0.00021917,2]
[374785750,1753443042751,-788.56,0.00021917,2]
[374785751,1753443042761,-3600.62,0.00021917,2]
[374785752,1753443042771,-991.65,0.00021917,2]
[374785753,1753443042781,-650.35,0.00021917,2]
[374785754,1753443042791,-292.58733281,0.0002196,2]
[374785755,1753443042800,-2312.27,0.00022,7]
[374785756,1753443042810,-37365.37,0.00022,2]
[374785757,1753443042819,-540.79,0.00022,2]
[374785758,1753443042828,-151.0,0.00022,2]
[374785759,1753443042838,-927.00149798,0.00022038,6]
[374785760,1753443042847,-2157.0,0.00022046,2]
[374785761,1753443042857,-969.0,0.00022046,2]
[374785762,1753443042867,-407.0,0.00022046,2]
[374785763,1753443042876,-421.487,0.00022046,2]
[374785764,1753443042886,-500.0,0.00022075,2]
[374785765,1753443042895,-3216.07,0.000221,7]
[374785766,1753443042906,-2039.47,0.00022146,2]
[374785767,1753443042916,-460.0,0.0002219,2]
[374785768,1753443042926,-460.0,0.0002219,2]
[374785769,1753443042935,-460.0,0.0002219,2]
[374785771,1753443042944,-460.0,0.0002219,2]
[374785772,1753443042954,-1208.39,0.0002219,2]
[374785773,1753443042963,-460.0,0.0002219,2]
[374785774,1753443042973,-460.0,0.0002219,2]
[374785775,1753443042982,-460.0,0.0002219,2]
[374785776,1753443042991,-460.0,0.0002219,2]
[374785778,1753443043001,-460.0,0.0002219,2]
[374785780,1753443043010,-500.0,0.0002219,2]
[374785781,1753443043020,-460.0,0.0002219,2]
[374785782,1753443043029,-460.0,0.0002219,2]
[374785784,1753443043038,-460.0,0.00022191,2]
[374785785,1753443043048,-689.16,0.00022191,2]
[374785786,1753443043058,-601.7,0.00022191,2]
[374785787,1753443043071,-460.0,0.00022191,2]
[374785788,1753443043080,-788.56,0.00022191,2]
[374785789,1753443043090,-3600.62,0.00022191,2]
[374785790,1753443043099,-991.65,0.00022191,2]
[374785791,1753443043110,-650.35,0.00022191,2]
[374785792,1753443043120,-927.00149798,0.00022279,6]
[374785793,1753443043132,-223.0315306,0.00022318,2]
[374785794,1753443043143,-181.86492511,0.00022345,2]
[374785796,1753443043154,-460.0,0.00022464,2]
[374785798,1753443043166,-460.0,0.00022464,2]
[374785800,1753443043177,-460.0,0.00022464,2]
[374785802,1753443043187,-460.0,0.00022464,2]
[374785804,1753443043197,-1208.39,0.00022464,2]
[374785806,1753443043207,-460.0,0.00022464,2]
[374785808,1753443043217,-460.0,0.00022464,2]
[374785810,1753443043228,-460.0,0.00022464,2]
[374785812,1753443043237,-460.0,0.00022464,2]
[374785814,1753443043247,-460.0,0.00022464,2]
[374785815,1753443043256,-460.0,0.00022464,2]
[374785817,1753443043266,-460.0,0.00022464,2]
[374785819,1753443043276,-304.35517803,0.00022465,2]
[374785820,1753443043285,-689.16,0.00022465,2]
[374785821,1753443043295,-601.7,0.00022465,2]
[374785822,1753443043304,-460.0,0.00022465,2]
[374785823,1753443043314,-788.56,0.00022465,2]
[374785824,1753443043324,-1341.38,0.00022465,2]
[374785825,1753443043334,-3600.62,0.00022465,2]
[374785826,1753443043344,-991.65,0.00022465,2]
[374785827,1753443043353,-650.35,0.00022465,2]
[374785828,1753443043363,-156279.30826915,0.0002249,7]
[374785829,1753443043442,-48641.51518771,0.0002249,7]
[374785830,1753443043452,-9585.85,0.000225,7]
[374785831,1753443043461,-540.79,0.000225,2]
[374785832,1753443043471,-927.00149798,0.00022521,7]
[374785833,1753443043481,-297.0,0.00022531,2]
[374785834,1753443043490,-336.17,0.000226,2]
[374785835,1753443043500,-164.702121,0.00022603,2]
[374785836,1753443043510,-154.09278747,0.00022664,2]
[374785837,1753443043519,-168.0,0.00022675,2]
[374785838,1753443043529,-550.54,0.00022728,3]
[374785839,1753443043538,-460.0,0.00022738,2]
[374785840,1753443043548,-460.0,0.00022738,2]
[374785841,1753443043557,-460.0,0.00022738,2]
[374785842,1753443043567,-460.0,0.00022738,2]
[374785843,1753443043576,-1208.39,0.00022738,2]
[374785844,1753443043586,-460.0,0.00022738,2]
[374785845,1753443043596,-460.0,0.00022738,2]
[374785846,1753443043606,-460.0,0.00022738,2]
[374785847,1753443043616,-460.0,0.00022738,2]
[374785848,1753443043626,-460.0,0.00022738,2]
[374785849,1753443043635,-460.0,0.00022738,2]
[374785850,1753443043645,-460.0,0.00022738,2]
[374785851,1753443043767,-689.16,0.00022739,2]
[374785852,1753443043777,-601.7,0.00022739,2]
[374785853,1753443043787,-318.06029768,0.00022739,2]
[374785854,1753443043797,-788.56,0.00022739,2]
[374785855,1753443043807,-3600.62,0.00022739,2]
[374785856,1753443043816,-991.65,0.00022739,2]
[374785857,1753443043825,-650.35,0.00022739,2]
[374785858,1753443043835,-927.00149798,0.00022762,7]
[374785859,1753443043845,-800.0,0.00022799,2]
[374785860,1753443043855,-24332.29709805,0.000229,7]
[374785861,1753443043868,-794.61667835,0.000229,7]
[374785862,1753443043880,-3262.07761997,0.000229,7]
[374785863,1753443043890,-292.58733281,0.00022923,2]
[374785864,1753443043899,-500.0,0.0002297,8]
[374785865,1753443043914,-23.33504722,0.00022978,2]
[374785866,1753443043925,-517.45495278,0.00022978,2]
[374785867,1753443043935,-173.0,0.00022986,8]
[374785868,1753443043945,-418.45555805,0.00023,7]
[374785869,1753443043957,-878.95773057,0.00023,7]
[374785870,1753443043968,-904.03821,0.00023,7]
[374785871,1753443044020,-518.22,0.00021094,2]
[374785872,1753443044030,-110.81850138,0.00023,7]
[374785873,1753443044041,-710.92180992,0.00023,10]
[374785874,1753443044051,-160.0,0.00023,2]
[374785875,1753443044061,-27871.17361582,0.00023,2]
[374785876,1753443044076,-9494.19638418,0.00023,2]
[374785877,1753443044086,-3500.26387075,0.00023,3]
[374785878,1753443044095,-2000.0,0.00023,4]
[374785879,1753443044106,-214.7599002,0.00023,3]
[374785880,1753443044117,-927.00149798,0.00023003,8]
[374785881,1753443044126,-500.0,0.00023011,2]
[374785883,1753443044136,-460.0,0.00023012,2]
[374785886,1753443044149,-460.0,0.00023012,2]
[374785888,1753443044164,-460.0,0.00023012,2]
[374785890,1753443044174,-1208.39,0.00023012,2]
[374785892,1753443044183,-460.0,0.00023012,2]
[374785893,1753443044192,-460.0,0.00023012,2]
[374785894,1753443044203,-460.0,0.00023012,2]
[374785895,1753443044212,-460.0,0.00023012,2]
[374785896,1753443044222,-460.0,0.00023012,2]
[374785897,1753443044232,-504.27845576,0.00023012,2]
[374785898,1753443044242,-460.0,0.00023012,2]
[374785899,1753443044252,-689.16,0.00023013,2]
[374785900,1753443044262,-601.7,0.00023013,2]
[374785901,1753443044271,-788.56,0.00023013,2]
[374785902,1753443044281,-3600.62,0.00023013,2]
[374785903,1753443044291,-991.65,0.00023013,2]
[374785904,1753443044301,-650.35,0.00023013,2]
[374785905,1753443044311,-2549.33,0.00023069,2]
[374785906,1753443044321,-1492.69,0.0002317,5]
[374785907,1753443044331,-1151.09756795,0.00023186,2]
[374785908,1753443044345,-3744.85412747,0.00023186,2]
[374785909,1753443044355,-779.06293459,0.000232,7]
[374785910,1753443044368,-989.55,0.000232,7]
[374785911,1753443044583,-460.0,0.00019178,2]
[374785912,1753443044593,-1447.45706541,0.000232,7]
[374785913,1753443044603,-927.00149798,0.00023245,8]
[374785914,1753443044612,-168.0,0.00023251,2]
[374785915,1753443044622,-297.0,0.00023255,2]
[374785916,1753443044631,-1492.69,0.0002327,2]
[374785917,1753443044640,-168.0,0.00023273,2]
[374785918,1753443044650,-460.0,0.00023286,2]
[374785919,1753443044660,-460.0,0.00023286,2]
[374785920,1753443044670,-377.36331764,0.00023286,2]
[374785921,1753443044679,-1208.39,0.00023286,2]
[374785922,1753443044690,-460.0,0.00023286,2]
[374785923,1753443044699,-460.0,0.00023286,2]
[374785924,1753443044709,-460.0,0.00023286,2]
[374785925,1753443044719,-460.0,0.00023286,2]
[374785926,1753443044728,-460.0,0.00023286,2]
[374785927,1753443044738,-460.0,0.00023286,2]
[374785928,1753443044747,-689.16,0.00023287,2]
[374785929,1753443044756,-601.7,0.00023287,2]
[374785930,1753443044766,-788.56,0.00023287,2]
[374785931,1753443044776,-3600.62,0.00023287,2]
[374785932,1753443044785,-991.65,0.00023287,2]
[374785933,1753443044795,-650.35,0.00023287,2]
[374785934,1753443044804,-1000.0,0.000233,7]
[374785935,1753443044813,-297.0,0.00023326,2]
[374785936,1753443044822,-168.0,0.00023333,2]
[374785937,1753443044831,-160.0,0.0002337,3]
[374785938,1753443044840,-526.33361954,0.0002337,3]
[374785939,1753443044850,-1492.69,0.0002337,2]
[374785940,1753443044859,-4056.02164071,0.000234,2]
[374785941,1753443044868,-151.0,0.00023409,6]
[374785942,1753443044877,-540.79,0.00023466,2]
[374785943,1753443044886,-1492.69,0.0002347,5]
[374785944,1753443044896,-927.00149798,0.00023486,9]
[374785945,1753443044907,-297.0,0.00023497,2]
[374785946,1753443044916,-704.0,0.000235,3]
[374785947,1753443044925,-1000.0,0.000235,2]
[374785948,1753443044935,-643.0,0.000235,2]
[374785949,1753443044943,-170.52212268,0.00023507,2]
[374785950,1753443044953,-159.86449001,0.00023507,2]
[374785951,1753443044962,-159.86449001,0.00023507,2]
[374785952,1753443044971,-170.52212267,0.00023507,2]
[374785953,1753443044981,-460.0,0.0002356,2]
[374785954,1753443044990,-460.0,0.0002356,2]
[374785955,1753443044999,-1208.39,0.0002356,2]
[374785956,1753443045009,-460.0,0.0002356,2]
[374785957,1753443045018,-460.0,0.0002356,2]
[374785958,1753443045028,-460.0,0.0002356,2]
[374785959,1753443045038,-460.0,0.0002356,2]
[374785960,1753443045047,-460.0,0.0002356,2]
[374785961,1753443045057,-460.0,0.0002356,2]
[374785962,1753443045069,-200.0,0.00023561,2]
[374785963,1753443045078,-200.0,0.00023561,2]
[374785964,1753443045088,-200.0,0.00023561,2]
[374785965,1753443045098,-200.0,0.00023561,2]
[374785966,1753443045110,-200.0,0.00023561,2]
[374785967,1753443045120,-310.97345416,0.00023561,2]
[374785968,1753443045129,-689.16,0.00023561,2]
[374785969,1753443045139,-601.7,0.00023561,2]